Workbook

Sheet Half oxidation time
A1: amount of 14C in 1000‰ (kg,Schimel 1996, C) | C1: 14C production (small bomb peak, kg) | D1: D14C(small Bomb peak in equatorial range, ‰, Hsb_eq) | E1: 14C production (small Bomb peak in equatorial range, full oxidation,kg, Csb) | F1: 30% of 14C production in small bomb peak (troposphere production,full oxidation, kg) | G1: estimated D14C in vermunt (small bomb peak,full oxidation,‰) | H1: measured 1st D14C (vermunt, 1st small bomb peak, ‰) | J1: oxidation ratio for 4 months (%) | K1: Half oxidation time (month) | M1: Half oxidation time (month)
A2: =D6*14/6.02E+26 -> 1023.255814 | C2: =D2*A2/1000 -> 143.255814 | D2: 140 | E2: =(D2*A2/1000)/(1-(EXP(-10*LN(2)/M2))) -> 170.8207073 | F2: =E2*0.3 -> 51.24621219 | G2: =H12 -> 194.7239056 | H2: 100 | J2: =H2/G2 -> 0.5135476287 | K2: =-4*LN(2)/LN(1-J2) -> 3.847524387 | M2: 3.8
A5: lowest latitude of 14C dispersion area for four months | B5: 14C dispersion area for four months (km^2) | C5: total carbon in the atmosphere (kg, Schimel 1996)) | D5: # of 14C in 1000‰ (Schimel 1996) | F5: Area from polar to latitude | G5: Latitude | H5: d14Cin Latitude | I5: 14C amount
A6: =90-180/PI()*ACOS(1-B6/(2*PI()*$C$11^2)) -> 33.74853659 | B6: =D11*4/18 -> 113349333.3 | C6: 7500000000000 | D6: 4.4e+28 | F6: 10000000 | G6: =90-180/PI()*ACOS(1-F6/(2*PI()*$C$11^2)) -> 73.90209028 | H6: =$L$15-F6*$M$15/10000000 -> 448.98 | I6: =($A$2*H6/1000)*(10000000/$D$11) -> 9.006991079
F7: 20000000 | G7: 67.15795586 | H7: 405.639 | I7: =$A$2*H7*(10000000/$D$11)/1000 -> 8.137526959
A8: Latitude of Vermunt | B8: area until Vermunt (km^2) | C8: Earth Radius (km) | D8: Earth area(km2) | F8: 30000000 | G8: 61.92932366 | H8: 362.298 | I8: =$A$2*H8*(10000000/$D$11)/1000 -> 7.26806284
F9: 40000000 | G9: 57.47501683 | H9: 318.957 | I9: =$A$2*H9*(10000000/$D$11)/1000 -> 6.39859872 | L9: D14C formula in Latitude
F10: 50000000 | G10: 53.50862114 | H10: 275.616 | I10: =$A$2*H10*(10000000/$D$11)/1000 -> 5.529134601
A11: 47 | B11: =2*PI()*C11^2*(1-COS(PI()/180*(90-A11))) -> 68513466.16 | C11: 6371 | D11: 510072000 | F11: 60000000 | G11: 49.88347764 | H11: 232.275 | I11: =$A$2*H11*(10000000/$D$11)/1000 -> 4.659670482
F12: =2*PI()*6378^2*(1-COS(PI()/180*(90-G12))) -> 68664104.28 | G12: 47 | H12: 194.7239056 | L12: D14C= C-B*A
F13: 70000000 | G13: =90-180/PI()*ACOS(1-F13/(2*PI()*$C$11^2)) -> 46.51253035 | H13: 188.934 | I13: =$A$2*H13*(10000000/$D$11)/1000 -> 3.790206362
F14: 80000000 | G14: =90-180/PI()*ACOS(1-F14/(2*PI()*$C$11^2)) -> 43.33904659 | H14: 145.593 | I14: =$A$2*H14*(10000000/$D$11)/1000 -> 2.920742243 | L14: C | M14: B | N14: A
F15: 90000000 | G15: =90-180/PI()*ACOS(1-F15/(2*PI()*$C$11^2)) -> 40.32356762 | H15: 102.252 | I15: =$A$2*H15*(10000000/$D$11)/1000 -> 2.051278123 | L15: 492.321 | M15: 43.341 | N15: (Area from polar to latitude)/107
F16: 100000000 | G16: =90-180/PI()*ACOS(1-F16/(2*PI()*$C$11^2)) -> 37.43728734 | H16: 58.911 | I16: =$A$2*H16*(10000000/$D$11)/1000 -> 1.181814004
F17: 110000000 | G17: =90-180/PI()*ACOS(1-F17/(2*PI()*$C$11^2)) -> 34.658367 | H17: 15.57 | I17: =$A$2*H17*(10000000/$D$11)/1000 -> 0.3123498844
F18: =2*PI()*6378^2*(1-COS(PI()/180*(90-G18))) -> 113598550.5 | G18: =A6 -> 33.74853659 | H18: -0.02647763717 | I18: =$A$2*H18*((F18-F17)/$D$11)/1000 -> -0.0001911435127
F19: 120000000 | G19: =90-180/PI()*ACOS(1-F19/(2*PI()*$C$11^2)) -> 31.96973607 | H19: -27.771
H20: sum | I20: =SUM(I6:I18) -> 51.25618415

Sheet EW_LW_time
E1: Laanila (north site) | X1: Difference between Cambium production time (cell enlagement) and late wood stop time (cell wall thickening)
D2: Early wood start time (cambium production start time) | E2: month | F2: day | G2: day-3.5 | K2: late wood start time | L2: month | M2: day | N2: day-3.5 | R2: Late wood stop time | S2: cambium production stop time | T2: month | U2: day | V2: day-3.5
B3: 2000 | C3: L01 | D3: =E3+G3/30 -> 6.05 | E3: 6 | F3: 5 | G3: =F3-3.5 -> 1.5 | K3: =L3+N3/31 -> 7.435483871 | L3: 7 | M3: 17 | N3: =M3-3.5 -> 13.5 | R3: =S3+X3 -> 8.983870968 | S3: =T3+V3/31 -> 8.112903226 | T3: 8 | U3: 7 | V3: =U3-3.5 -> 3.5 | X3: =27/31 -> 0.8709677419
C4: L02 | D4: =E4+G4/30 -> 6.283333333 | E4: 6 | F4: 12 | G4: =F4-3.5 -> 8.5 | K4: =L4+N4/31 -> 7.435483871 | L4: 7 | M4: 17 | N4: =M4-3.5 -> 13.5 | R4: =S4+X4 -> 8.983870968 | S4: =T4+V4/31 -> 8.112903226 | T4: 8 | U4: 7 | V4: 3.5 | X4: =27/31 -> 0.8709677419
C5: L03 | D5: 6.283333333 | E5: 6 | F5: 12 | G5: 8.5 | K5: 7.435483871 | L5: 7 | M5: 17 | N5: 13.5 | R5: 8.983870968 | S5: 8.112903226 | T5: 8 | U5: 7 | V5: 3.5 | X5: 0.8709677419
C6: L04 | D6: 6.283333333 | E6: 6 | F6: 12 | G6: 8.5 | K6: 7.435483871 | L6: 7 | M6: 17 | N6: 13.5 | R6: 8.983870968 | S6: 8.112903226 | T6: 8 | U6: 7 | V6: 3.5 | X6: 0.8709677419
C7: L05 | D7: 6.283333333 | E7: 6 | F7: 12 | G7: 8.5 | K7: 7.435483871 | L7: 7 | M7: 17 | N7: 13.5 | R7: 8.983870968 | S7: 8.112903226 | T7: 8 | U7: 7 | V7: 3.5 | X7: 0.8709677419
B8: 2001 | C8: L06 | D8: 6.483333333 | E8: 6 | F8: 18 | G8: 14.5 | K8: 7.403225806 | L8: 7 | M8: 16 | N8: 12.5 | R8: 8.725806452 | S8: 7.85483871 | T8: 7 | U8: 30 | V8: 26.5 | X8: 0.8709677419
C9: L07 | D9: 6.283333333 | E9: 6 | F9: 12 | G9: 8.5 | K9: 7.403225806 | L9: 7 | M9: 16 | N9: 12.5 | R9: 8.725806452 | S9: 7.85483871 | T9: 7 | U9: 30 | V9: 26.5 | X9: 0.8709677419
C10: L08 | D10: 6.483333333 | E10: 6 | F10: 18 | G10: 14.5 | K10: 7.177419355 | L10: 7 | M10: 9 | N10: 5.5 | R10: 8.725806452 | S10: 7.85483871 | T10: 7 | U10: 30 | V10: 26.5 | X10: 0.8709677419
C11: L09 | D11: 6.283333333 | E11: 6 | F11: 12 | G11: 8.5 | K11: 7.403225806 | L11: 7 | M11: 16 | N11: 12.5 | R11: 8.725806452 | S11: 7.85483871 | T11: 7 | U11: 30 | V11: 26.5 | X11: 0.8709677419
C12: L10 | D12: 6.283333333 | E12: 6 | F12: 12 | G12: 8.5 | K12: 7.403225806 | L12: 7 | M12: 16 | N12: 12.5 | R12: 8.725806452 | S12: 7.85483871 | T12: 7 | U12: 30 | V12: 26.5 | X12: 0.8709677419
B13: 2002 | C13: L11 | D13: 6.216666667 | E13: 6 | F13: 10 | G13: 6.5 | K13: 7.14516129 | L13: 7 | M13: 8 | N13: 4.5 | R13: 8.467741935 | S13: 7.596774194 | T13: 7 | U13: 22 | V13: 18.5 | X13: 0.8709677419
C14: L12 | D14: 6.216666667 | E14: 6 | F14: 10 | G14: 6.5 | K14: 7.14516129 | L14: 7 | M14: 8 | N14: 4.5 | R14: 8.467741935 | S14: 7.596774194 | T14: 7 | U14: 22 | V14: 18.5 | X14: 0.8709677419
C15: L13 | D15: 6.216666667 | E15: 6 | F15: 10 | G15: 6.5 | K15: 7.14516129 | L15: 7 | M15: 8 | N15: 4.5 | R15: 8.467741935 | S15: 7.596774194 | T15: 7 | U15: 22 | V15: 18.5 | X15: 0.8709677419
C16: L14 | D16: 6.216666667 | E16: 6 | F16: 10 | G16: 6.5 | K16: 6.887096774 | L16: 6 | M16: 1 | N16: 27.5 | R16: 8.467741935 | S16: 7.596774194 | T16: 7 | U16: 22 | V16: 18.5 | X16: 0.8709677419
C17: L15 | D17: 6.216666667 | E17: 6 | F17: 10 | G17: 6.5 | K17: 7.14516129 | L17: 7 | M17: 8 | N17: 4.5 | R17: 8.467741935 | S17: 7.596774194 | T17: 7 | U17: 22 | V17: 18.5 | X17: 0.8709677419
B18: 2003 | C18: L16 | D18: 6.183333333 | E18: 6 | F18: 9 | G18: 5.5 | K18: 7.338709677 | L18: 7 | M18: 14 | N18: 10.5 | R18: 8.887096774 | S18: 8.016129032 | T18: 8 | U18: 4 | V18: 0.5 | X18: 0.8709677419
C19: L17 | D19: 6.416666667 | E19: 6 | F19: 16 | G19: 12.5 | K19: 7.338709677 | L19: 7 | M19: 14 | N19: 10.5 | R19: 9.338709677 | S19: 8.467741935 | T19: 8 | U19: 18 | V19: 14.5 | X19: 0.8709677419
C20: L18 | D20: 6.416666667 | E20: 6 | F20: 16 | G20: 12.5 | K20: 7.112903226 | L20: 7 | M20: 7 | N20: 3.5 | R20: 9.338709677 | S20: 8.467741935 | T20: 8 | U20: 18 | V20: 14.5 | X20: 0.8709677419
C21: L19 | D21: 6.416666667 | E21: 6 | F21: 16 | G21: 12.5 | K21: 7.338709677 | L21: 7 | M21: 14 | N21: 10.5 | R21: 8.661290323 | S21: 7.790322581 | T21: 7 | U21: 28 | V21: 24.5 | X21: 0.8709677419
C22: L20 | D22: 6.65 | E22: 6 | F22: 23 | G22: 19.5 | K22: 7.338709677 | L22: 7 | M22: 14 | N22: 10.5 | R22: 8.887096774 | S22: 8.016129032 | T22: 8 | U22: 4 | V22: 0.5 | X22: 0.8709677419
B23: 2004 | C23: L21 | D23: 6.583333333 | E23: 6 | F23: 21 | G23: 17.5 | K23: 7.5 | L23: 7 | M23: 19 | N23: 15.5 | R23: 8.822580645 | S23: 7.951612903 | T23: 7 | U23: 2 | V23: 29.5 | X23: 0.8709677419
C24: L22 | D24: 6.583333333 | E24: 6 | F24: 21 | G24: 17.5 | K24: 7.5 | L24: 7 | M24: 19 | N24: 15.5 | R24: 9.274193548 | S24: 8.403225806 | T24: 8 | U24: 16 | V24: =U24-3.5 -> 12.5 | X24: 0.8709677419
C25: L23 | D25: 6.583333333 | E25: 6 | F25: 21 | G25: 17.5 | K25: 7.5 | L25: 7 | M25: 19 | N25: 15.5 | R25: 8.822580645 | S25: 7.951612903 | T25: 7 | U25: 2 | V25: 29.5 | X25: 0.8709677419
C26: L24 | D26: 6.583333333 | E26: 6 | F26: 21 | G26: 17.5 | K26: 7.274193548 | L26: 7 | M26: 12 | N26: 8.5 | R26: 9.048387097 | S26: 8.177419355 | T26: 8 | U26: 9 | V26: =U26-3.5 -> 5.5 | X26: 0.8709677419
C27: L25 | D27: 6.583333333 | E27: 6 | F27: 21 | G27: 17.5 | K27: 7.5 | L27: 7 | M27: 19 | N27: 15.5 | R27: 9.274193548 | S27: 8.403225806 | T27: 8 | U27: 16 | V27: =U27-3.5 -> 12.5 | X27: 0.8709677419
D28: average | E28: stdev | K28: average | L28: stdev | R28: average | S28: stdev
D29: =AVERAGE(D3:D27) -> 6.363333333 | E29: =STDEV(D3:D27) -> 0.1638653467 | K29: =AVERAGE(K3:K27) -> 7.327096774 | L29: =STDEV(K3:K27) -> 0.1579986696 | R29: =AVERAGE(R3:R27) -> 8.849677419 | S29: =STDEV(R3:R27) -> 0.2749325904
D30: average | I30: Onset time of Scots pine | P30: Onset time of LW of Scots pine | W30: End time of LW of Scots pine
I31: Month | J31: day | K31: stdev | P31: Month | Q31: day | R31: stdev | W31: Month | X31: day | Y31: stdev
I32: 6 | J32: =(D29-6)*30 -> 10.9 | K32: =E29*30 -> 4.915960401 | P32: 7 | Q32: =(K29-7)*30 -> 9.812903226 | R32: =L29*31 -> 4.897958759 | W32: 8 | X32: =(R29-8)*31 -> 26.34 | Y32: =S29*31 -> 8.522910301
M33: Center time of EW | N33: Month | O33: day | U33: Center time of LW | V33: Month | W33: day
M34: =(D29+K29)/2 -> 6.845215054 | N34: =6 -> 6 | O34: =(M34-N34)*30 -> 25.35645161 | U34: =(K29+R29)/2 -> 8.088387097 | V34: 8 | W34: =(U34-V34)*31 -> 2.74
K35: 2018-01-01 | L35: 2018-06-25 | M35: =((DATEDIF(K35,L35,"d"))+1)/365 -> 0.4821917808 | S35: 2018-01-01 | T35: 2018-08-03 | U35: =((DATEDIF(S35,T35,"d"))+1)/365 -> 0.5890410959
K36: 2018-01-01 | L36: 2018-06-10 | M36: =((DATEDIF(K36,L36,"d"))+1)/365 -> 0.4410958904

Sheet 14C spike production time
A1: Total 14C (Buntgen et al, kg) | B1: 14C ratio produced in troposphere(%) | C1: 14C produced in troposphere (kg, 14Ct_M12) | D1: oxidation time (month) | E1: half Oxiation time (month) | F1: M12 height(‰) | G1: oxidation amount of 14C (kg) | H1: D14C in Finland (‰) | S1: oxidation time(month) | T1: oxidation amount of 14C (kg)=OR_14CO2 | V1: D14C in Finland (‰) | W1: EW start month | X1: LW start month | Y1: LW stop month | Z1: 14C spike prodtion month | AA1: delay month for photosynthetic and metabolic reaction | BB1: Months | BC1: Measurement of D14 in Finland (‰) | BD1: Months+1month(delay) | BE1: Estimation of D14C in Finland (‰) | BF1: HOT
A2: =C6*14/6.02E+26 -> 22.3255814 | B2: 17 | C2: =A2*B2*0.01 -> 3.795348837 | D2: 3.8 | E2: ='Half oxidation time'!M2 -> 3.8 | F2: 15 | G2: =C2*(1-EXP(-(D2*LN(2))/(E2))) -> 1.897674419 | H2: =F2*510000000/(2*B6)*(G2/A2) -> 5.210158189 | S2: 0.1 | T2: =C$2*(1-EXP(-(S2*LN(2))/(D$2))) -> 0.0686022979 | U2: 0.06870185971 | V2: 0.3397698 | W2: 6.4 | X2: 7.3 | Y2: 8.8 | Z2: 4.8 | AA2: 1 | BB2: 6.8 | BC2: =O19 -> 2 | BD2: =S2+$Z$2+1 -> 5.9 | BE2: =V2 -> 0.3397698 | BF2: =D2 -> 3.8 | BK2: 5
S3: 0.2 | T3: =C$2*(1-EXP(-(S3*LN(2))/(D$2))) -> 0.1359645846 | U3: 0.1360587382 | V3: 0.6105969121 | BB3: 8.1 | BC3: =O13 -> 9.675 | BD3: =S3+$Z$2+1 -> 6 | BE3: =V3 -> 0.6105969121 | BK3: 5.1
A4: Latitude of area average between Finland and Korea sampling location | B4: Area average between Finland and Korea sampling location (km^2) | C4: 14C produced in M12(Buntgen et al) | D4: Earth Radius (km) | E4: Earth area (km2,wikipedia) | F4: sampling location's latitude in Korea | G4: sampling location's latitude in Finland | H4: Area until sampling location of Finland (km^2) | S4: 0.3 | T4: 0.2021092736 | U4: 0.2020136613 | V4: 0.9178641439 | AH4: 14C spike production < EW start month-delay month | AR4: 14C spike production >= EW start month-delay month | BD4: 6.1 | BE4: 0.9178641439 | BK4: 5.2
S5: 0.4 | T5: 0.2670583735 | U5: 0.2670787703 | V5: 1.218706117 | W5: D14C in EW | X5: D14C in LW | AH5: During EW period | AL5: During LW period | AR5: During EW period | AV5: During LW period | BD5: 6.2 | BE5: 1.218706117 | BK5: 5.3
A6: 49.1 | B6: =2*PI()*6378^2*(1-COS(PI()/180*(90-A6))) -> 62402136.02 | C6: 9.6e+26 | D6: 6371 | E6: 510072000 | F6: 35.55 | G6: 68.5 | H6: =2*PI()*6378^2*(1-COS(PI()/180*(90-G6))) -> 17784780.2 | S6: 0.5 | T6: 0.3308334951 | U6: 0.3307694514 | V6: 1.523494555 | W6: 2.906877055 | X6: 5.992543499 | AI6: Stored D14C(‰) | AJ6: D14C in Finland (‰) | AM6: Stored D14C(‰) | AN6: D14C in Finland (‰) | AS6: Stored D14C(‰) | AT6: D14C in Finland (‰) | AW6: Stored D14C(‰) | AX6: D14C in Finland (‰) | BD6: 6.3 | BE6: 1.523494555 | BK6: 5.4
S7: 0.6 | T7: 0.3934558584 | U7: 0.3933607837 | V7: 1.813695825 | AA7: chi square | AB7: D14C in EW | AC7: D14C in LW | AD7: 14C spike prodtion month | BD7: 6.4 | BE7: 1.813695825 | BK7: 5.5
S8: 0.7 | T8: 0.4549462999 | U8: 0.4550410765 | V8: 2.094461705 | W8: chi square | X8: =(O19-W6)^2/P19^2+(O13-X6)^2/P13^2 -> 3.43204388 | AA8: 4.062678795 | AB8: 3.691333116 | AC8: 6.611940121 | AD8: 4.5 | AH8: 1 | AI8: 0.2657165506 | AJ8: 2.657165506 | AL8: 1 | AM8: 0.5154146991 | AN8: 4.919818032 | BD8: 6.5 | BE8: 2.094461705 | BK8: 5.6
A9: D14C in Finland | K9: Analysis of D14C in Finland | S9: 0.8 | T9: 0.5153252795 | U9: 0.5154177992 | V9: 2.373769233 | AA9: 3.737591936 | AB9: 3.434023027 | AC9: 6.409276939 | AD9: 4.6 | AH9: 2 | AI9: 0.5580325617 | AJ9: 2.923160111 | AL9: 2 | AM9: 1.053084622 | AN9: 5.154146991 | BD9: 6.6 | BE9: 2.373769233 | BK9: 5.7
A10: Year | B10: 14C(‰) | C10: 1 | D10: 14C EW(‰) | E10: 1 | F10: 14C LW(‰) | G10: 1 | H10: RWEW(mm) | I10: RWLW (mm) | K10: average D14C in LW of 770-773 (B) | L10: stdev | M10: D14C in LW of 774 (A) | N10: error | O10: D14C increase in LW of AD774 (A-B) | P10: error | S10: 0.9 | T10: 0.5746128872 | U10: 0.5745472716 | V10: 2.657165506 | AA10: 3.524949363 | AB10: 3.172549033 | AC10: 6.203167126 | AD10: 4.7 | AH10: 3 | AI10: 0.8768342107 | AJ10: 3.188016491 | AL10: 3 | AM10: 1.612393919 | AN10: 5.376699226 | BD10: 6.7 | BE10: 2.657165506 | BK10: 5.8
A11: 770 | B11: -19.4 | C11: 1.8 | D11: -20.7 | E11: 1.5 | F11: -24.3 | G11: 1.6 | H11: 0.32 | I11: 0.09 | S11: 1 | T11: 0.6328288501 | U11: 0.6327310389 | V11: 2.923160111 | AA11: 3.43204388 | AB11: 2.906877055 | AC11: 5.992543499 | AD11: 4.8 | AH11: 4 | AI11: 1.221484307 | AJ11: 3.446500965 | AL11: 4 | AM11: 2.193746801 | AN11: 5.593092975 | BD11: 6.8 | BE11: 2.923160111 | BK11: 5.9
A12: 771 | B12: -16.4 | C12: 1.9 | D12: -20.4 | E12: 1.6 | F12: -19.5 | G12: 1.6 | H12: 0.31 | I12: 0.1 | S12: 1.1 | T12: 0.6899925385 | U12: 0.6898973857 | V12: 3.188016491 | AA12: 3.463007703 | AB12: 2.636682514 | AC12: 5.778441229 | AD12: 4.9 | AH12: 5 | AI12: 1.592472131 | AJ12: 3.709878236 | AL12: 5 | AM12: 2.797078572 | AN12: 5.813528821 | BD12: 6.9 | BE12: 3.188016491 | BK12: 6
A13: 772 | B13: -21.2 | C13: 1.8 | D13: -23.2 | E13: 1.5 | F13: -15.3 | G13: 1.5 | H13: 0.41 | I13: 0.08 | K13: =AVERAGE(F11:F14) -> -18.775 | L13: =STDEV(F11:F14) -> 4.11612682 | M13: =F15 -> -9.1 | N13: =G15 -> 1.5 | O13: =M13-K13 -> 9.675 | P13: =SQRT(L13^2+N13^2)/2 -> 2.19046228 | S13: 1.2 | T13: 0.7461229727 | U13: 0.74622161 | V13: 3.446500965 | AA13: 3.624316894 | AB13: 2.359885612 | AC13: 5.560131665 | AD13: 5 | AH13: 6 | AI13: 1.987996673 | AJ13: 3.955245421 | AL13: 6 | AM13: 3.42067752 | AN13: 6.033317708 | BD13: 7 | BE13: 3.446500965 | BK13: 6.1
A14: 773 | B14: -17.1 | C14: 1.9 | D14: -18.9 | E14: 1.5 | F14: -16 | G14: 1.5 | H14: 0.48 | I14: 0.12 | S14: 1.3 | T14: 0.801238829 | U14: 0.8011436681 | V14: 3.709878236 | AA14: 3.924198046 | AB14: 2.078925965 | AC14: 5.338322116 | AD14: 5.1 | AH14: 7 | AI14: 2.408471036 | AJ14: 4.204743628 | AL14: 7 | AM14: 4.065497901 | AN14: 6.235989483 | BD14: 7.1 | BE14: 3.709878236 | BK14: 6.2
A15: 774 | B15: -8.4 | C15: 2 | D15: -18.8 | E15: 1.5 | F15: -9.1 | G15: 1.5 | H15: 0.31 | I15: 0.1 | S15: 1.4 | T15: 0.8553584463 | U15: 0.8554498061 | V15: 3.955245421 | AA15: 4.37140383 | AB15: 1.792546012 | AC15: 5.111840364 | AD15: 5.2 | AH15: 8 | AI15: 2.853243801 | AJ15: 4.447727652 | AL15: 8 | AM15: 4.73041315 | AN15: 6.448203808 | BD15: 7.2 | BE15: 3.955245421 | BK15: 6.3
A16: 775 | B16: -7.8 | C16: 2 | D16: -11.2 | E16: 1.5 | F16: -0.6 | G16: 1.6 | H16: 0.38 | I16: 0.08 | K16: average D14C in EW of 770-773 (D) | L16: stdev | M16: D14C in EW of 774 (C) | N16: error | O16: D14C increase in EW of AD774 (C-D) | P16: error | S16: 1.5 | T16: 0.9084998321 | U16: 0.90859502 | V16: 4.204743628 | AH16: 9 | AI16: 3.322199804 | AJ16: 4.689560033 | AL16: 9 | AM16: 5.414785873 | AN16: 6.649152486 | BD16: 7.3 | BE16: 4.204743628 | BK16: 6.4
A17: 776 | B17: 0.8 | C17: 1.8 | D17: 1.6 | E17: 1.5 | F17: -1.9 | G17: 1.6 | H17: 0.38 | I17: 0.09 | S17: 1.6 | T17: 0.9606806681 | U17: 0.9607709338 | V17: 4.447727652 | AL17: 10 | AM17: 6.118488021 | AN17: 6.843727234 | BD17: 7.4 | BE17: 4.447727652 | BK17: 6.5
S18: 1.7 | T18: 1.011918317 | U18: 1.011820364 | V18: 4.689560033 | AI18: LW_start - EW_start | AJ18: Average D14C | AL18: 11 | AM18: 6.841476909 | AN18: 7.037021477 | BD18: 7.5 | BE18: 4.689560033 | BK18: 6.6
K19: =AVERAGE(D11:D14) -> -20.8 | L19: =STDEV(D11:D14) -> 1.78325545 | M19: -18.8 | N19: 1.5 | O19: =M19-K19 -> 2 | P19: =SQRT(L19^2+N19^2)/2 -> 1.16511802 | S19: 1.8 | T19: 1.062229826 | U19: 1.06232793 | V19: 4.919818032 | AI19: 0.9 | AJ19: 3.691333116 | AL19: 12 | AM19: 7.583104677 | AN19: 7.229888885 | BD19: 7.6 | BE19: 4.919818032 | BK19: 6.7
S20: 1.9 | T20: 1.111631937 | U20: 1.111572348 | V20: 5.154146991 | AL20: 13 | AM20: 8.343812883 | AN20: 7.41627768 | BD20: 7.7 | BE20: 5.154146991 | BK20: 6.8
A21: Area from polar to latitude | B21: Latitude | C21: d14Cin Latitude | D21: 14C amount | S21: 2 | T21: 1.160141088 | U21: 1.160045502 | V21: 5.376699226 | AL21: 14 | AM21: 9.121933605 | AN21: 7.607082053 | BD21: 7.8 | BE21: 5.376699226 | BK21: 6.9
A22: 10000000 | B22: =90-180/PI()*ACOS(1-A22/(2*PI()*$D$6^2)) -> 73.90209028 | C22: =$G$31-A22*$H$31/10000000 -> 10.70582 | D22: =2*($A$2*C22/$F$2)*(10000000/$E$6) -> 0.624784098 | S22: 2.1 | T22: 1.207773417 | U22: 1.207867299 | V22: 5.593092975 | AL22: 15 | AM22: 9.917910182 | AN22: 7.781207228 | BD22: 7.9 | BE22: 5.593092975 | BK22: 7
A23: =2*PI()*6378^2*(1-COS(PI()/180*(90-B23))) -> 17784780.2 | B23: 68.5 | C23: =$G$31-A23*$H$31/10000000 -> 9.118985974 | S23: 2.2 | T23: 1.254544775 | U23: 1.254448686 | V23: 5.813528821 | BD23: 8 | BE23: 5.813528821 | BK23: 7.1
A24: 20000000 | B24: =90-180/PI()*ACOS(1-A24/(2*PI()*$D$6^2)) -> 67.15795586 | C24: =$G$31-A24*$H$31/10000000 -> 8.66744 | D24: =2*($A$2*C24/$F$2)*(10000000/$E$6) -> 0.5058256801 | S24: 2.3 | T24: 1.300470724 | U24: 1.300403243 | V24: 6.033317708 | AM24: LW_stop - LW_start | AN24: Average D14C | BD24: 8.1 | BE24: 6.033317708 | BK24: 7.2
A25: 30000000 | B25: =90-180/PI()*ACOS(1-A25/(2*PI()*$D$6^2)) -> 61.92932366 | C25: 6.62906 | D25: 0.3868672622 | S25: 2.4 | T25: 1.345566545 | U25: 1.34566645 | V25: 6.235989483 | AM25: 1.5 | AN25: 6.611940121 | BD25: 8.2 | BE25: 6.235989483 | BK25: 7.3
A26: 40000000 | B26: =90-180/PI()*ACOS(1-A26/(2*PI()*$D$6^2)) -> 57.47501683 | C26: 4.59068 | D26: 0.2679088442 | S26: 2.5 | T26: 1.389847243 | U26: 1.389752406 | V26: 6.448203808 | BD26: 8.3 | BE26: 6.448203808 | BK26: 7.4
A27: 50000000 | B27: =90-180/PI()*ACOS(1-A27/(2*PI()*$D$6^2)) -> 53.50862114 | C27: 2.5523 | D27: 0.1489504263 | S27: 2.6 | T27: 1.433327551 | U27: 1.43323272 | V27: 6.649152486 | BD27: 8.4 | BE27: 6.649152486 | BK27: 7.5
A28: 60000000 | B28: =90-180/PI()*ACOS(1-A28/(2*PI()*$D$6^2)) -> 49.88347764 | C28: 0.51392 | D28: 0.02999200842 | G28: D14C formula in Latitude | S28: 2.7 | T28: 1.476021937 | U28: 1.476111777 | V28: 6.843727234 | AH28: 1 | AI28: 0.2373769233 | AJ28: 2.373769233 | AL28: 1 | AM28: 0.4919818032 | AN28: 4.689560033 | BD28: 8.5 | BE28: 6.843727234 | BK28: 7.6
A29: =2*PI()*6378^2*(1-COS(PI()/180*(90-B29))) -> 62402136.02 | B29: =A6 -> 49.1 | C29: 0.02427339839 | D29: 0.001416578395 | G29: D14C= C-B*A | S29: 2.8 | T29: 1.517944607 | U29: 1.517846234 | V29: 7.037021477 | AH29: 2 | AI29: 0.5030934739 | AJ29: 2.657165506 | AL29: 2 | AM29: 1.007396502 | AN29: 4.919818032 | BD29: 8.6 | BE29: 7.037021477 | BK29: 7.7
G30: C | H30: B | I30: A | S30: 2.9 | T30: 1.559109509 | U30: 1.55919916 | V30: 7.229888885 | AH30: 3 | AI30: 0.795409485 | AJ30: 2.923160111 | AL30: 3 | AM30: 1.545066425 | AN30: 5.154146991 | BD30: 8.7 | BE30: 7.229888885 | BK30: 7.8
C31: sum | D31: =SUM(D22,D24:D29) -> 1.965744898 | G31: 12.7442 | H31: 2.03838 | I31: (Area from polar to latitude)/107 | S31: 3 | T31: 1.59953034 | U31: 1.599614579 | V31: 7.41627768 | AH31: 4 | AI31: 1.114211134 | AJ31: 3.188016491 | AL31: 4 | AM31: 2.104375722 | AN31: 5.376699226 | BD31: 8.8 | BE31: 7.41627768 | BK31: 7.9
S32: 3.1 | T32: 1.639220551 | U32: 1.63912343 | V32: 7.607082053 | AH32: 5 | AI32: 1.458861231 | AJ32: 3.446500965 | AL32: 5 | AM32: 2.685728604 | AN32: 5.593092975 | BD32: 8.9 | BE32: 7.607082053 | BK32: 8
K33: =5.4/12 -> 0.45 | S33: 3.2 | T33: 1.678193347 | U33: 1.678283828 | V33: 7.781207228 | AH33: 6 | AI33: 1.829849054 | AJ33: 3.709878236 | AL33: 6 | AM33: 3.289060375 | AN33: 5.813528821 | BD33: 9 | BE33: 7.781207228 | BK33: 8.1
S34: 3.3 | T34: 1.716461695 | U34: 1.716553555 | V34: 7.959765765 | AH34: 7 | AI34: 2.225373596 | AJ34: 3.955245421 | AL34: 7 | AM34: 3.912659324 | AN34: 6.033317708 | BD34: 9.1 | BE34: 7.959765765 | BK34: 8.2
S35: 3.4 | T35: 1.754038329 | U35: 1.753940584 | V35: 8.140431778 | AH35: 8 | AI35: 2.645847959 | AJ35: 4.204743628 | AL35: 8 | AM35: 4.557479704 | AN35: 6.235989483 | BD35: 9.2 | BE35: 8.140431778 | BK35: 8.3
S36: 3.5 | T36: 1.790935752 | U36: 1.790852638 | V36: 8.312095944 | AH36: 9 | AI36: 3.090620724 | AJ36: 4.447727652 | AL36: 9 | AM36: 5.222394953 | AN36: 6.448203808 | BD36: 9.3 | BE36: 8.312095944 | BK36: 8.4
S37: 3.6 | T37: 1.827166241 | U37: 1.82708687 | V37: 8.480558398 | AL37: 10 | AM37: 5.906767676 | AN37: 6.649152486 | BD37: 9.4 | BE37: 8.480558398 | BK37: 8.5
S38: 3.7 | T38: 1.862741851 | U38: 1.862830229 | V38: 8.640001222 | AI38: LW_start - EW_start | AJ38: Average D14C | AL38: 11 | AM38: 6.610469824 | AN38: 6.843727234 | BD38: 9.5 | BE38: 8.640001222 | BK38: 8.6
S39: 3.8 | T39: 1.897674419 | U39: 1.897612059 | V39: 8.809282227 | AI39: 0.9 | AJ39: 3.434023027 | AL39: 12 | AM39: 7.333458713 | AN39: 7.037021477 | BD39: 9.6 | BE39: 8.809282227 | BK39: 8.7
S40: 3.9 | T40: 1.931975568 | U40: 1.932068174 | V40: 8.961855172 | AL40: 13 | AM40: 8.07508648 | AN40: 7.229888885 | BD40: 9.7 | BE40: 8.961855172 | BK40: 8.8
S41: 4 | T41: 1.965656711 | U41: 1.965744898 | V41: 9.118985974 | AL41: 14 | AM41: 8.835794686 | AN41: 7.41627768 | BD41: 9.8 | BE41: 9.118985974 | BK41: 8.9
AL42: 15 | AM42: 9.613915409 | AN42: 7.607082053 | BK42: 9
BK43: 9.1
AM44: LW_stop - LW_start | AN44: Average D14C | BK44: 9.2
AM45: 1.5 | AN45: 6.409276939 | BK45: 9.3
BK46: 9.4
BK47: 9.5
AH48: 1 | AI48: 0.2094461705 | AJ48: 2.094461705 | AL48: 1 | AM48: 0.4689560033 | AN48: 4.447727652 | BK48: 9.6
AH49: 2 | AI49: 0.4468230939 | AJ49: 2.373769233 | AL49: 2 | AM49: 0.9609378065 | AN49: 4.689560033 | BK49: 9.7
AH50: 3 | AI50: 0.7125396444 | AJ50: 2.657165506 | AL50: 3 | AM50: 1.476352506 | AN50: 4.919818032 | BK50: 9.8
AH51: 4 | AI51: 1.004855656 | AJ51: 2.923160111 | AL51: 4 | AM51: 2.014022428 | AN51: 5.154146991 | BK51: 9.9
AH52: 5 | AI52: 1.323657305 | AJ52: 3.188016491 | AL52: 5 | AM52: 2.573331726 | AN52: 5.376699226 | BK52: 10
AH53: 6 | AI53: 1.668307401 | AJ53: 3.446500965 | AL53: 6 | AM53: 3.154684608 | AN53: 5.593092975 | BK53: 10.1
AH54: 7 | AI54: 2.039295225 | AJ54: 3.709878236 | AL54: 7 | AM54: 3.758016379 | AN54: 5.813528821 | BK54: 10.2
AH55: 8 | AI55: 2.434819767 | AJ55: 3.955245421 | AL55: 8 | AM55: 4.381615327 | AN55: 6.033317708 | BK55: 10.3
AH56: 9 | AI56: 2.85529413 | AJ56: 4.204743628 | AL56: 9 | AM56: 5.026435708 | AN56: 6.235989483 | BK56: 10.4
AL57: 10 | AM57: 5.691350956 | AN57: 6.448203808 | BK57: 10.5
AI58: LW_start - EW_start | AJ58: Average D14C | AL58: 11 | AM58: 6.37572368 | AN58: 6.649152486 | BK58: 10.6
AI59: 0.9 | AJ59: 3.172549033 | AL59: 12 | AM59: 7.079425827 | AN59: 6.843727234 | BK59: 10.7
AL60: 13 | AM60: 7.802414716 | AN60: 7.037021477 | BK60: 10.8
AL61: 14 | AM61: 8.544042484 | AN61: 7.229888885 | BK61: 10.9
AL62: 15 | AM62: 9.304750689 | AN62: 7.41627768 | BK62: 11
AM64: LW_stop - LW_start | AN64: Average D14C
AM65: 1.5 | AN65: 6.203167126
AH68: 1 | AI68: 0.1813695825 | AJ68: 1.813695825 | AL68: 1 | AM68: 0.4447727652 | AN68: 4.204743628
AH69: 2 | AI69: 0.3908157531 | AJ69: 2.094461705 | AL69: 2 | AM69: 0.9137287685 | AN69: 4.447727652
AH70: 3 | AI70: 0.6281926764 | AJ70: 2.373769233 | AL70: 3 | AM70: 1.405710572 | AN70: 4.689560033
AH71: 4 | AI71: 0.893909227 | AJ71: 2.657165506 | AL71: 4 | AM71: 1.921125271 | AN71: 4.919818032
AH72: 5 | AI72: 1.186225238 | AJ72: 2.923160111 | AL72: 5 | AM72: 2.458795193 | AN72: 5.154146991
AH73: 6 | AI73: 1.505026887 | AJ73: 3.188016491 | AL73: 6 | AM73: 3.018104491 | AN73: 5.376699226
AH74: 7 | AI74: 1.849676984 | AJ74: 3.446500965 | AL74: 7 | AM74: 3.599457373 | AN74: 5.593092975
AH75: 8 | AI75: 2.220664807 | AJ75: 3.709878236 | AL75: 8 | AM75: 4.202789144 | AN75: 5.813528821
AH76: 9 | AI76: 2.616189349 | AJ76: 3.955245421 | AL76: 9 | AM76: 4.826388092 | AN76: 6.033317708
AL77: 10 | AM77: 5.471208473 | AN77: 6.235989483
AI78: LW_start - EW_start | AJ78: Average D14C | AL78: 11 | AM78: 6.136123722 | AN78: 6.448203808
AI79: 0.9 | AJ79: 2.906877055 | AL79: 12 | AM79: 6.820496445 | AN79: 6.649152486
AL80: 13 | AM80: 7.524198593 | AN80: 6.843727234
AL81: 14 | AM81: 8.247187481 | AN81: 7.037021477
AL82: 15 | AM82: 8.988815249 | AN82: 7.229888885
AM84: LW_stop - LW_start | AN84: Average D14C
AM85: 1.5 | AN85: 5.992543499
AH88: 1 | AI88: 0.1523494555 | AJ88: 1.523494555 | AL88: 1 | AM88: 0.4204743628 | AN88: 3.955245421
AH89: 2 | AI89: 0.3337190381 | AJ89: 1.813695825 | AL89: 2 | AM89: 0.865247128 | AN89: 4.204743628
AH90: 3 | AI90: 0.5431652086 | AJ90: 2.094461705 | AL90: 3 | AM90: 1.334203131 | AN90: 4.447727652
AH91: 4 | AI91: 0.7805421319 | AJ91: 2.373769233 | AL91: 4 | AM91: 1.826184934 | AN91: 4.689560033
AH92: 5 | AI92: 1.046258682 | AJ92: 2.657165506 | AL92: 5 | AM92: 2.341599634 | AN92: 4.919818032
AH93: 6 | AI93: 1.338574694 | AJ93: 2.923160111 | AL93: 6 | AM93: 2.879269556 | AN93: 5.154146991
AH94: 7 | AI94: 1.657376343 | AJ94: 3.188016491 | AL94: 7 | AM94: 3.438578854 | AN94: 5.376699226
AH95: 8 | AI95: 2.002026439 | AJ95: 3.446500965 | AL95: 8 | AM95: 4.019931736 | AN95: 5.593092975
AH96: 9 | AI96: 2.373014263 | AJ96: 3.709878236 | AL96: 9 | AM96: 4.623263507 | AN96: 5.813528821
AL97: 10 | AM97: 5.246862455 | AN97: 6.033317708
AI98: LW_start - EW_start | AJ98: Average D14C | AL98: 11 | AM98: 5.891682836 | AN98: 6.235989483
AI99: 0.9 | AJ99: 2.636682514 | AL99: 12 | AM99: 6.556598084 | AN99: 6.448203808
AL100: 13 | AM100: 7.240970808 | AN100: 6.649152486
AL101: 14 | AM101: 7.944672955 | AN101: 6.843727234
AL102: 15 | AM102: 8.667661844 | AN102: 7.037021477
AM104: LW_stop - LW_start | AN104: Average D14C
AM105: 1.5 | AN105: 5.778441229
AH108: 1 | AI108: 0.1218706117 | AJ108: 1.218706117 | AL108: 1 | AM108: 0.3955245421 | AN108: 3.709878236
AH109: 2 | AI109: 0.2742200672 | AJ109: 1.523494555 | AL109: 2 | AM109: 0.8159989049 | AN109: 3.955245421
AH110: 3 | AI110: 0.4555896497 | AJ110: 1.813695825 | AL110: 3 | AM110: 1.26077167 | AN110: 4.204743628
AH111: 4 | AI111: 0.6650358202 | AJ111: 2.094461705 | AL111: 4 | AM111: 1.729727673 | AN111: 4.447727652
AH112: 5 | AI112: 0.9024127436 | AJ112: 2.373769233 | AL112: 5 | AM112: 2.221709477 | AN112: 4.689560033
AH113: 6 | AI113: 1.168129294 | AJ113: 2.657165506 | AL113: 6 | AM113: 2.737124176 | AN113: 4.919818032
AH114: 7 | AI114: 1.460445305 | AJ114: 2.923160111 | AL114: 7 | AM114: 3.274794098 | AN114: 5.154146991
AH115: 8 | AI115: 1.779246954 | AJ115: 3.188016491 | AL115: 8 | AM115: 3.834103396 | AN115: 5.376699226
AH116: 9 | AI116: 2.123897051 | AJ116: 3.446500965 | AL116: 9 | AM116: 4.415456278 | AN116: 5.593092975
AL117: 10 | AM117: 5.018788049 | AN117: 5.813528821
AI118: LW_start - EW_start | AJ118: Average D14C | AL118: 11 | AM118: 5.642386997 | AN118: 6.033317708
AI119: 0.9 | AJ119: 2.359885612 | AL119: 12 | AM119: 6.287207378 | AN119: 6.235989483
AL120: 13 | AM120: 6.952122626 | AN120: 6.448203808
AL121: 14 | AM121: 7.63649535 | AN121: 6.649152486
AL122: 15 | AM122: 8.340197497 | AN122: 6.843727234
AM124: LW_stop - LW_start | AN124: Average D14C
AM125: 1.5 | AN125: 5.560131665
AH128: 1 | AI128: 0.09178641439 | AJ128: 0.9178641439 | AL128: 1 | AM128: 0.3709878236 | AN128: 3.446500965
AH129: 2 | AI129: 0.2136570261 | AJ129: 1.218706117 | AL129: 2 | AM129: 0.7665123657 | AN129: 3.709878236
AH130: 3 | AI130: 0.3660064816 | AJ130: 1.523494555 | AL130: 3 | AM130: 1.186986729 | AN130: 3.955245421
AH131: 4 | AI131: 0.5473760641 | AJ131: 1.813695825 | AL131: 4 | AM131: 1.631759494 | AN131: 4.204743628
AH132: 5 | AI132: 0.7568222346 | AJ132: 2.094461705 | AL132: 5 | AM132: 2.100715497 | AN132: 4.447727652
AH133: 6 | AI133: 0.994199158 | AJ133: 2.373769233 | AL133: 6 | AM133: 2.5926973 | AN133: 4.689560033
AH134: 7 | AI134: 1.259915709 | AJ134: 2.657165506 | AL134: 7 | AM134: 3.108111999 | AN134: 4.919818032
AH135: 8 | AI135: 1.55223172 | AJ135: 2.923160111 | AL135: 8 | AM135: 3.645781922 | AN135: 5.154146991
AH136: 9 | AI136: 1.871033369 | AJ136: 3.188016491 | AL136: 9 | AM136: 4.205091219 | AN136: 5.376699226
AL137: 10 | AM137: 4.786444101 | AN137: 5.593092975
AI138: LW_start - EW_start | AJ138: Average D14C | AL138: 11 | AM138: 5.389775872 | AN138: 5.813528821
AI139: 0.9 | AJ139: 2.078925965 | AL139: 12 | AM139: 6.013374821 | AN139: 6.033317708
AL140: 13 | AM140: 6.658195201 | AN140: 6.235989483
AL141: 14 | AM141: 7.32311045 | AN141: 6.448203808
AL142: 15 | AM142: 8.007483173 | AN142: 6.649152486
AM144: LW_stop - LW_start | AN144: Average D14C
AM145: 1.5 | AN145: 5.338322116
AH148: 1 | AI148: 0.06105969121 | AJ148: 0.6105969121 | AL148: 1 | AM148: 0.3446500965 | AN148: 3.188016491
AH149: 2 | AI149: 0.1528461056 | AJ149: 0.9178641439 | AL149: 2 | AM149: 0.7156379202 | AN149: 3.446500965
AH150: 3 | AI150: 0.2747167173 | AJ150: 1.218706117 | AL150: 3 | AM150: 1.111162462 | AN150: 3.709878236
AH151: 4 | AI151: 0.4270661728 | AJ151: 1.523494555 | AL151: 4 | AM151: 1.531636825 | AN151: 3.955245421
AH152: 5 | AI152: 0.6084357553 | AJ152: 1.813695825 | AL152: 5 | AM152: 1.97640959 | AN152: 4.204743628
AH153: 6 | AI153: 0.8178819259 | AJ153: 2.094461705 | AL153: 6 | AM153: 2.445365594 | AN153: 4.447727652
AH154: 7 | AI154: 1.055258849 | AJ154: 2.373769233 | AL154: 7 | AM154: 2.937347397 | AN154: 4.689560033
AH155: 8 | AI155: 1.3209754 | AJ155: 2.657165506 | AL155: 8 | AM155: 3.452762096 | AN155: 4.919818032
AH156: 9 | AI156: 1.613291411 | AJ156: 2.923160111 | AL156: 9 | AM156: 3.990432018 | AN156: 5.154146991
AL157: 10 | AM157: 4.549741316 | AN157: 5.376699226
AI158: LW_start - EW_start | AJ158: Average D14C | AL158: 11 | AM158: 5.131094198 | AN158: 5.593092975
AI159: 0.9 | AJ159: 1.792546012 | AL159: 12 | AM159: 5.734425969 | AN159: 5.813528821
AL160: 13 | AM160: 6.358024917 | AN160: 6.033317708
AL161: 14 | AM161: 7.002845298 | AN161: 6.235989483
AL162: 15 | AM162: 7.667760547 | AN162: 6.448203808
AM164: LW_stop - LW_start | AN164: Average D14C
AM165: 1.5 | AN165: 5.111840364
AH168: 1 | AI168: 0.1813695825 | AJ168: 1.813695825 | AL168: 1 | AM168: 0.4447727652 | AN168: 4.204743628
AH169: 2 | AI169: 0.3908157531 | AJ169: 2.094461705 | AL169: 2 | AM169: 0.9137287685 | AN169: 4.447727652
AH170: 3 | AI170: 0.6281926764 | AJ170: 2.373769233 | AL170: 3 | AM170: 1.405710572 | AN170: 4.689560033
AH171: 4 | AI171: 0.893909227 | AJ171: 2.657165506 | AL171: 4 | AM171: 1.921125271 | AN171: 4.919818032
AH172: 5 | AI172: 1.186225238 | AJ172: 2.923160111 | AL172: 5 | AM172: 2.458795193 | AN172: 5.154146991
AH173: 6 | AI173: 1.505026887 | AJ173: 3.188016491 | AL173: 6 | AM173: 3.018104491 | AN173: 5.376699226
AH174: 7 | AI174: 1.849676984 | AJ174: 3.446500965 | AL174: 7 | AM174: 3.599457373 | AN174: 5.593092975
AH175: 8 | AI175: 2.220664807 | AJ175: 3.709878236 | AL175: 8 | AM175: 4.202789144 | AN175: 5.813528821
AH176: 9 | AI176: 2.616189349 | AJ176: 3.955245421 | AL176: 9 | AM176: 4.826388092 | AN176: 6.033317708
AL177: 10 | AM177: 5.471208473 | AN177: 6.235989483
AI178: LW_start - EW_start | AJ178: Average D14C | AL178: 11 | AM178: 6.136123722 | AN178: 6.448203808
AI179: 0.9 | AJ179: 2.906877055 | AL179: 12 | AM179: 6.820496445 | AN179: 6.649152486
AL180: 13 | AM180: 7.524198593 | AN180: 6.843727234
AL181: 14 | AM181: 8.247187481 | AN181: 7.037021477
AL182: 15 | AM182: 8.988815249 | AN182: 7.229888885
AM184: LW_stop - LW_start | AN184: Average D14C
AM185: 1.5 | AN185: 5.992543499

Sheet Korean D14C data
A1: Year | B1: D14C | C1: error
A2: 762.4 | B2: -21.54453174 | C2: 2.388312595
A3: 762.6 | B3: -27.46455293 | C3: 2.553968341
A4: 763.4 | B4: -16.19502431 | C4: 2.570485132
A5: 763.6 | B5: -19.64962975 | C5: 2.381287745
A6: 764.4 | B6: -24.78800215 | C6: 2.341467541
A7: 764.6 | B7: -17.94602045 | C7: 2.285388478
A8: 765.4 | B8: -21.89202568 | C8: 2.381243911
A9: 765.6 | B9: -19.17238621 | C9: 2.423573986
A10: 766.4 | B10: -19.69259559 | C10: 2.44974265
A11: 766.6 | B11: -24.54320051 | C11: 2.373322156
A12: 767.4 | B12: -23.38178512 | C12: 2.423349944
A13: 767.6 | B13: -18.58356955 | C13: 2.430251077
A14: 768.4 | B14: -20.45526688 | C14: 2.409118935
A15: 768.6 | B15: -21.81916902 | C15: 2.322418406
A16: 769.4 | B16: -16.5053529 | C16: 2.500621717
A17: 769.6 | B17: -22.2689145 | C17: 2.329859526
A18: 770.4 | B18: -21.85714225 | C18: 2.373637689
A19: 770.6 | B19: -18.20835352 | C19: 2.487257562
A20: 771.4 | B20: -20.43537569 | C20: 2.35034138
A21: 771.6 | B21: -20.61415645 | C21: 2.277003201
A22: 772.4 | B22: -18.09416293 | C22: 2.44287296
A23: 772.6 | B23: -20.39422245 | C23: 2.398198158
A24: 773.4 | B24: -27.4474657 | C24: 2.346197401
A25: 773.6 | B25: -22.03788558 | C25: 2.379314107
A26: 774.4 | B26: -19.10483728 | C26: 2.394821902
A27: 774.6 | B27: -21.3172406 | C27: 2.384441929
A28: 775.4 | B28: -12.4889064 | C28: 2.376261031
A29: 775.6 | B29: -10.05231664 | C29: 2.366567508
A30: 776.4 | B30: -6.167578002 | C30: 2.54908951
A31: 776.6 | B31: -6.038572832 | C31: 2.449208432
